bitfinex-derivatives/quotes_ETHF0:USTF0_20250504
["timestamp","ask_amount","ask_price","bid_price","bid_amount"]
[1746366319154,5.90879,1823.4,1823.3,13.50145513]
[1746366319350,3.2078,1823.4,1823.3,13.50145513]
[1746366319950,4.30459,1823.4,1823.3,13.50145513]
[1746366320247,3.2078,1823.4,1823.3,13.50145513]
[1746366320845,4.30451,1823.6,1823.4,1.09676]
[1746366321046,4.30451,1823.6,1823.5,8.01953513]
[1746366321248,1.09671,1823.6,1823.5,8.01953513]
[1746366321445,1.09671,1823.6,1823.5,1.7407]
[1746366321849,2.70086,1823.7,1823.5,9.76022513]
[1746366322047,2.70086,1823.7,1823.6,6.92280513]
[1746366322248,5.98779,1823.8,1823.6,9.76017513]
[1746366322446,1.6479,1823.9,1823.7,8.66350513]
[1746366322751,9.74909935,1824.0,1823.8,9.76005513]
[1746366322952,9.74905935,1824.0,1823.9,8.66350513]
[1746366323251,6.54125935,1824.0,1823.9,6.92280513]
[1746366323455,1.09658,1823.8,1823.7,3.755]
[1746366323754,1.09658,1823.8,1823.7,10.67780513]
[1746366323955,1.09658,1823.8,1823.7,12.32770513]
[1746366324253,1.09663,1823.7,1823.5,8.05949]
[1746366324454,1.0966,1823.8,1823.6,9.66937513]
[1746366324754,1.09651,1823.9,1823.7,8.01937513]
[1746366324950,2.83571,1823.9,1823.8,6.92280513]
[1746366325548,5.44482935,1824.0,1823.9,1.09649]
[1746366325755,6.54125935,1824.0,1823.9,6.92280513]
[1746366325955,5.44482935,1824.0,1823.9,9.66919513]
[1746366326255,5.44482935,1824.0,1823.9,10.26090513]
[1746366326256,6.54125935,1824.0,1823.9,10.26090513]
[1746366326552,5.44482935,1824.0,1823.9,11.35739513]
[1746366327150,6.54125935,1824.0,1823.9,10.26090513]
[1746366327355,1.09643,1824.0,1823.9,10.26090513]
[1746366328547,4.30423,1824.0,1823.9,6.92280513]
[1746366328849,1.0966,1823.8,1823.6,8.02166]
[1746366329048,1.0966,1823.8,1823.7,8.50120513]
[1746366329250,2.5493,1823.9,1823.7,8.50120513]
[1746366329550,3.64581,1823.9,1823.8,8.49610513]
[1746366329750,3.64579,1823.9,1823.8,8.49610513]
[1746366329957,2.5493,1823.9,1823.8,9.59265513]
[1746366330159,3.2078,1824.0,1823.9,1.09649]
[1746366330359,3.2078,1824.0,1823.9,13.34659513]
[1746366330857,3.2078,1824.0,1823.9,8.49610513]
[1746366331060,4.30423,1824.0,1823.9,12.25010513]
[1746366331459,1.09657,1823.8,1823.6,1.5926]
[1746366331652,1.09657,1823.8,1823.7,1.5733]
[1746366331848,1.09657,1823.8,1823.7,13.34671513]
[1746366332159,3.2078,1824.0,1823.8,1.09655]
[1746366332457,1.09649,1824.0,1823.9,8.49930513]
[1746366333346,1.09649,1824.0,1823.9,9.59579513]
[1746366333653,1.09649,1824.0,1823.9,8.49930513]
[1746366333959,1.09643,1824.0,1823.9,8.49930513]
[1746366334662,1.09661,1823.7,1823.6,0.7882]
[1746366334958,1.09661,1823.7,1823.6,6.92280513]
[1746366335756,2.69581,1823.7,1823.6,6.92280513]
[1746366336255,1.5992,1823.7,1823.6,8.01947513]
[1746366336559,1.95661,1823.8,1823.6,9.71546513]
[1746366336855,3.55581,1823.8,1823.7,6.92280513]
[1746366337055,1.09661,1823.7,1823.6,1.696]
[1746366337257,2.69581,1823.7,1823.6,8.61880513]
[1746366340863,5.90361,1823.7,1823.6,8.61880513]
[1746366341966,4.807,1823.7,1823.6,9.71547513]
[1746366342162,3.2078,1823.7,1823.6,9.71547513]
[1746366342662,4.30441,1823.7,1823.6,8.61880513]
[1746366342864,5.96181,1823.7,1823.6,8.61880513]
[1746366343264,5.96181,1823.7,1823.6,6.92280513]
[1746366343660,5.96181,1823.7,1823.6,8.66130513]
[1746366344866,4.8652,1823.7,1823.6,9.75797513]
[1746366345064,3.2078,1823.7,1823.6,9.75797513]
[1746366345366,3.2078,1823.9,1823.8,1.09655]
[1746366345672,3.2078,1823.9,1823.8,11.79135513]
[1746366345971,1.09642,1824.1,1823.9,1.09647]
[1746366346266,1.09642,1824.1,1824.0,6.92280513]
[1746366346468,2.78932,1824.1,1823.9,1.6783]
[1746366346769,2.78932,1824.1,1824.0,8.60110513]
[1746366347571,1.6929,1824.1,1823.8,4.6164]
[1746366347765,5.92828,1824.0,1823.9,6.92280513]
[1746366348265,1.09649,1823.9,1823.8,6.3467]
[1746366348467,2.72049,1823.9,1823.8,6.3467]
[1746366348667,2.72049,1823.9,1823.8,13.26950513]
[1746366348868,2.72049,1823.9,1823.8,12.42510513]
[1746366349562,2.72049,1823.9,1823.8,8.65310513]
[1746366350169,1.624,1823.9,1823.8,9.74965513]
[1746366350959,5.98525,1824.2,1823.8,9.48550513]
[1746366351163,7.58285,1824.2,1824.0,6.92280513]
[1746366351364,7.58285,1824.2,1824.1,1.7165]
[1746366352063,7.58285,1824.2,1824.1,8.63930513]
[1746366352064,4.30411,1824.2,1824.1,8.63930513]
[1746366354173,4.30411,1824.2,1824.1,6.30802326]
[1746366354667,1.09643,1824.0,1823.9,3.772]
[1746366354868,2.68711,1824.1,1824.0,6.30802326]
[1746366356172,1.5907,1824.1,1824.0,7.40445326]
[1746366356475,2.68707,1824.1,1824.0,6.30802326]
[1746366357672,2.68707,1824.1,1824.0,7.91522326]
[1746366357874,2.68707,1824.1,1824.0,6.30802326]
[1746366358076,1.09643,1824.0,1823.9,1.6072]
[1746366358275,2.68712,1824.1,1824.0,6.30802326]
[1746366358475,2.68712,1824.1,1824.0,7.16112326]
[1746366358675,2.68712,1824.1,1824.0,2.4603]
[1746366358975,1.09643,1824.0,1823.9,3.772]
[1746366359176,2.83183,1824.0,1823.9,3.772]
[1746366359375,2.83183,1824.0,1823.9,6.30802326]
[1746366359674,2.83183,1824.0,1823.9,10.08002326]
[1746366360274,1.7354,1824.0,1823.7,3.2078]
[1746366360473,1.09655,1823.8,1823.7,3.2078]
[1746366360669,4.3044,1823.8,1823.6,5.4843]
[1746366360874,1.6762,1823.7,1823.6,6.58097]
[1746366361178,2.77281,1823.7,1823.6,5.4843]
[1746366361477,2.77281,1823.7,1823.6,11.79232326]
[1746366363176,1.09667,1823.6,1823.5,1.6582]
[1746366363370,2.68857,1823.6,1823.5,11.73822326]
[1746366363572,1.5919,1823.6,1823.4,3.772]
[1746366363874,6.74993,1823.8,1823.4,3.772]
[1746366363875,3.49443,1823.5,1823.4,10.08002326]
[1746366364370,1.09682,1823.4,1823.2,3.2078]
[1746366364574,1.09682,1823.4,1823.3,6.30802326]
[1746366364575,2.68872,1823.4,1823.3,6.30802326]
[1746366364885,2.68872,1823.4,1823.3,47.10802326]
[1746366365177,1.5919,1823.4,1823.3,49.64452326]
[1746366365474,2.68869,1823.4,1823.3,49.64452326]
[1746366365778,2.68869,1823.4,1823.3,8.84452326]
[1746366367472,5.89649,1823.4,1823.3,8.84452326]
[1746366367678,2.68869,1823.4,1823.3,8.84452326]
[1746366368075,5.89649,1823.4,1823.3,8.84452326]
[1746366368478,4.7997,1823.4,1823.1,0.8339]
[1746366368669,1.09703,1823.0,1822.9,0.8166]
[1746366368869,1.09703,1823.0,1822.7,13.93083819]
[1746366369075,4.30495,1822.8,1822.6,0.02007]
[1746366369280,4.30495,1822.8,1822.7,6.30802326]
[1746366369480,3.2078,1822.8,1822.7,7.40523326]
[1746366369679,1.09705,1823.0,1822.8,1.09714]
[1746366369873,1.09705,1823.0,1822.8,7.35364]
[1746366370072,1.09705,1823.0,1822.9,6.30802326]
[1746366370878,1.09709,1822.9,1822.8,0.8363]
[1746366371082,1.09719,1822.8,1822.6,5.66093]
[1746366371381,2.67679,1822.8,1822.7,6.30802326]
[1746366371583,2.67679,1822.8,1822.7,8.00122326]
[1746366372383,1.09721,1822.7,1822.6,5.35157]
[1746366372583,1.09711,1822.9,1822.7,7.40521326]
[1746366372882,1.09711,1822.9,1822.8,6.30802326]
[1746366373085,1.09711,1822.9,1822.8,8.02042326]
[1746366373983,1.5684,1823.0,1822.6,5.35157]
[1746366374286,1.09715,1822.8,1822.7,6.30802326]
[1746366374673,2.66555,1822.8,1822.7,6.30802326]
[1746366375685,1.09721,1822.7,1822.6,7.06397]
[1746366375878,2.6656,1822.8,1822.7,6.30802326]
[1746366376079,2.6656,1822.8,1822.7,8.00942326]
[1746366376284,2.6656,1822.8,1822.7,1.7014]
[1746366377285,9.7762,1822.8,1822.0,9.1198]
[1746366377480,1.09739,1822.4,1822.3,6.30802326]
[1746366377788,1.09745,1822.3,1822.2,7.12512326]
[1746366378581,1.09745,1822.3,1822.2,8.84132326]
[1746366379195,4.30525,1822.3,1822.2,8.84132326]
[1746366379481,5.14645,1822.3,1822.2,2.5333]
[1746366379787,5.14649,1822.3,1822.2,6.30802326]
[1746366379983,5.14649,1822.3,1822.2,8.02422326]
[1746366381690,4.30525,1822.3,1822.2,8.02422326]
[1746366382286,3.2078,1822.3,1822.2,8.02422326]
[1746366382886,3.2078,1822.3,1822.2,9.12173326]
[1746366383079,1.7326,1822.4,1822.2,9.12173326]
[1746366383278,6.03779,1822.4,1822.3,7.94572326]
[1746366383881,6.03779,1822.4,1822.3,6.30802326]
[1746366384182,6.03779,1822.4,1822.1,43.3686]
[1746366384183,1.0975,1822.3,1822.1,43.3686]
[1746366384384,2.7624,1822.3,1822.1,43.3686]
[1746366384580,2.7624,1822.3,1822.2,6.30802326]
[1746366384781,2.7624,1822.3,1822.2,8.03722326]
[1746366385485,4.30524,1822.4,1822.2,9.13472326]
[1746366385685,4.30524,1822.4,1822.3,8.03722326]
[1746366385885,4.30524,1822.4,1822.3,1.7292]
[1746366386085,5.97014,1822.4,1822.3,1.7292]
[1746366386386,5.97014,1822.4,1822.3,8.03722326]
[1746366386588,2.76234,1822.4,1822.3,8.03722326]
[1746366386983,1.09751,1822.2,1822.1,40.8]
[1746366387182,2.79229,1822.3,1822.2,6.30802326]
[1746366387676,2.79229,1822.3,1822.2,7.95302326]
[1746366389789,2.79229,1822.3,1822.2,6.30802326]
[1746366389988,1.09751,1822.2,1822.1,40.8]
[1746366390185,4.44421,1822.2,1822.1,47.10802326]
[1746366390782,4.44421,1822.2,1822.1,6.30802326]
[1746366392384,1.09757,1822.1,1822.0,3.2366]
[1746366392587,1.09757,1822.1,1821.8,1.09772]
[1746366392588,1.7413,1822.1,1821.7,3.2078]
[1746366392789,1.09763,1822.0,1821.9,6.30802326]
[1746366392994,5.95189,1822.0,1821.5,3.2078]
[1746366393283,1.09776,1821.8,1821.7,6.30802326]
[1746366393488,1.09782,1821.7,1821.6,6.30802326]
[1746366393788,2.68502,1821.7,1821.6,6.30802326]
[1746366393991,2.68502,1821.7,1821.6,7.93112326]
[1746366394195,2.68502,1821.7,1821.6,8.76682326]
[1746366394493,2.68502,1821.7,1821.6,7.14372326]
[1746366394685,1.5872,1821.7,1821.6,7.14372326]
[1746366394885,2.68502,1821.7,1821.6,7.14372326]
[1746366395091,1.09782,1821.7,1821.6,7.14372326]
[1746366395292,3.2078,1821.8,1821.6,8.76682326]
[1746366395487,1.5872,1821.7,1821.6,2.4588]
[1746366395991,2.68502,1821.7,1821.6,8.76682326]
[1746366396291,10.4162,1821.7,1820.4,3.2078]
[1746366396485,3.2078,1820.7,1819.9,1.6296]
[1746366396687,1.09874,1820.2,1819.8,41.05865629]
[1746366396991,9.13162,1820.6,1820.1,6.30802326]
[1746366397194,1.09867,1820.3,1820.2,6.30802326]
[1746366397390,3.2078,1820.4,1820.1,1.6296]
[1746366397582,1.5729,1820.3,1820.1,2.72834]
[1746366397783,1.5729,1820.3,1820.2,1.6296]
[1746366397986,1.5729,1820.3,1820.2,9.03634326]
[1746366398285,2.67156,1820.3,1820.2,0.07858612]
[1746366398487,5.87936,1820.3,1820.2,0.07858612]
[1746366398691,2.67156,1820.3,1820.2,5.12314938]
[1746366398893,2.67156,1820.3,1820.2,0.07858612]
[1746366399088,9.7807,1820.3,1819.8,0.25865629]
[1746366399294,4.7807,1820.3,1819.9,5.04456326]
[1746366399589,4.7807,1820.3,1820.2,5.04456326]
[1746366399795,1.09858,1820.5,1820.2,5.04456326]
[1746366399995,1.6791,1820.5,1820.4,5.04456326]
[1746366400293,2.77764,1820.5,1820.4,5.04456326]
[1746366400485,1.6791,1820.5,1819.8,0.25865629]
[1746366400690,4.30646,1820.3,1820.2,5.04456326]
[1746366400889,1.09878,1820.1,1820.0,1.6086]
[1746366401193,1.09884,1820.0,1819.9,3.2078]
[1746366401393,1.6791,1820.0,1819.9,3.2078]
[1746366401895,1.6791,1820.0,1819.8,44.26645629]
[1746366402097,1.0989,1819.9,1819.8,46.10321955]
[1746366402291,1.6791,1820.0,1819.9,5.04456326]
[1746366402589,2.77794,1820.0,1819.9,5.04456326]
[1746366402789,1.09906,1819.7,1819.4,3.2078]
[1746366402993,2.74791,1819.5,1818.7,1.09959]
[1746366403190,3.2078,1819.2,1818.8,5.04456326]
[1746366403386,3.2078,1819.2,1819.1,5.04456326]
[1746366403585,3.2078,1819.7,1819.1,5.04456326]
[1746366403793,3.2078,1819.7,1819.0,7.0878]
[1746366403794,1.6859,1819.6,1819.4,5.04256326]
[1746366403993,1.6859,1819.6,1819.5,4.30694]
[1746366404294,2.78494,1819.7,1819.4,3.88]
[1746366404495,1.6859,1819.5,1819.4,1.0992]
[1746366404799,3.2078,1820.1,1819.8,5.04256326]
[1746366404991,4.8937,1820.1,1820.0,5.04256326]
[1746366405292,1.6859,1820.1,1820.0,5.04256326]
[1746366405499,3.2078,1820.3,1820.0,6.14140326]
[1746366405690,3.2078,1820.3,1820.2,5.04256326]
[1746366405886,3.2078,1820.3,1820.2,6.14128326]
[1746366406086,1.6753,1820.4,1820.3,1.09866]
[1746366406287,3.2078,1821.0,1820.7,1.09838]
[1746366406490,1.6753,1820.9,1820.8,3.881]
[1746366406685,2.77365,1820.9,1820.8,5.04256326]
[1746366406890,1.09836,1820.8,1820.5,1.09852]
[1746366407086,1.6753,1820.7,1820.6,5.5326]
[1746366407285,1.6753,1820.7,1820.6,1.6516]
[1746366407794,1.6753,1820.7,1820.6,46.3326]
[1746366408398,1.6753,1820.7,1820.6,5.5326]
[1746366408787,1.6753,1820.7,1820.6,6.63108]
[1746366408991,1.09821,1821.1,1820.8,1.09835]
[1746366409199,3.2078,1821.3,1821.1,5.04256326]
[1746366409388,3.2078,1821.3,1821.2,6.65806326]
[1746366409598,3.2078,1821.3,1821.2,7.75618326]
[1746366409794,3.2078,1821.3,1821.2,6.65806326]
[1746366410098,3.2078,1821.3,1821.2,7.75618326]
[1746366410300,2.82031,1821.4,1821.2,6.65806326]
[1746366410500,2.82031,1821.4,1821.3,5.04256326]
[1746366410801,1.7223,1821.4,1821.3,5.04256326]
[1746366411999,1.7223,1821.4,1821.3,6.14062326]
[1746366412192,4.30572,1821.6,1821.3,6.14062326]
[1746366412391,3.2078,1821.6,1821.5,5.04256326]
[1746366412792,4.8963,1821.6,1821.4,6.6123]
[1746366412992,4.8963,1821.6,1821.5,5.04256326]
[1746366413286,4.8963,1821.6,1821.5,6.67586326]
[1746366414499,5.99418,1821.6,1821.5,6.67586326]
[1746366415699,4.8963,1821.6,1821.5,6.67586326]
[1746366415999,5.99418,1821.6,1821.5,6.67586326]
[1746366416196,5.99418,1821.6,1821.5,5.04256326]
[1746366416399,5.9942,1821.6,1821.3,1.09802]
[1746366416600,5.9942,1821.6,1821.5,5.04256326]
[1746366417399,4.8963,1821.6,1821.5,5.04256326]
[1746366417600,4.30558,1821.8,1821.6,1.09787]
[1746366417803,4.30558,1821.8,1821.5,6.58991]
[1746366418097,1.09778,1821.8,1821.6,5.04256326]
[1746366418298,1.6082,1821.7,1821.6,6.14044326]
[1746366418499,1.09772,1821.9,1821.7,6.14036326]
[1746366418801,2.70592,1821.9,1821.8,5.04256326]
[1746366419000,1.6082,1821.9,1821.8,5.04256326]
[1746366419198,1.6082,1821.9,1821.8,8.92256326]
[1746366419400,1.6082,1821.9,1821.8,10.53456326]
[1746366419601,2.7059,1821.9,1821.8,8.92256326]
[1746366422597,2.7059,1821.9,1821.8,5.04256326]
[1746366422994,1.6082,1821.9,1821.8,6.63706326]
[1746366423200,3.2078,1822.0,1821.8,6.63706326]
[1746366423401,3.2078,1822.0,1821.9,7.73476326]
[1746366423801,3.2078,1822.0,1821.9,6.63706326]
[1746366424008,1.0977,1821.9,1821.8,0.844]
[1746366424209,2.7065,1821.9,1821.8,3.879]
[1746366424404,1.09777,1821.8,1821.6,1.6297]
[1746366424605,2.70657,1821.8,1821.7,46.3087]
[1746366424903,2.70657,1821.8,1821.7,51.35126326]
[1746366425202,2.70657,1821.8,1821.7,47.47226326]
[1746366425407,2.70657,1821.8,1821.7,45.84256326]
[1746366426208,2.70657,1821.8,1821.7,5.04256326]
[1746366426802,1.09782,1821.7,1821.6,40.8]
[1746366427002,1.09782,1821.7,1821.3,1.89744]
[1746366427003,1.09806,1821.3,1821.2,3.879]
[1746366427202,1.09794,1821.5,1821.4,5.04256326]
[1746366427402,3.2078,1821.6,1821.5,5.04256326]
[1746366427606,5.97718,1821.6,1821.5,5.04256326]
[1746366428308,1.09806,1821.3,1821.2,44.679]
[1746366428503,1.09806,1821.3,1821.2,46.409]
[1746366428705,1.09806,1821.3,1821.2,51.45156326]
[1746366429103,13.61037,1821.4,1820.9,7.1778]
[1746366429302,13.61037,1821.4,1821.0,3.97]
[1746366429303,2.76964,1821.2,1821.0,3.97]
[1746366429503,1.09818,1821.1,1821.0,5.7]
[1746366429709,2.69678,1821.1,1821.0,5.7]
[1746366429910,2.69678,1821.1,1821.0,10.74256326]
[1746366430110,2.69678,1821.1,1821.0,6.77256326]
[1746366430608,1.09824,1821.0,1820.9,44.0078]
[1746366430808,2.69684,1821.0,1820.9,44.0078]
[1746366431009,2.69684,1821.0,1820.9,49.05036326]
[1746366432107,2.69684,1821.0,1820.9,50.64386326]
[1746366432413,2.69684,1821.0,1820.9,54.61486326]
[1746366433206,2.69684,1821.0,1820.9,45.6013]
[1746366433413,2.69684,1821.0,1820.9,3.2078]
[1746366433911,2.69684,1821.0,1820.9,8.25036326]
[1746366434415,2.69684,1821.0,1820.9,9.82616326]
[1746366436215,2.69684,1821.0,1820.9,6.61836326]
[1746366437215,3.2078,1821.2,1820.9,6.61836326]
[1746366437408,3.2078,1821.2,1820.9,1.5758]
[1746366437409,4.30592,1821.2,1820.9,1.5758]
[1746366437614,2.74668,1821.1,1821.0,5.04256326]
[1746366437910,1.09824,1821.0,1820.9,6.61836326]
[1746366438111,1.09836,1820.8,1820.7,1.6049]
[1746366438311,1.09834,1820.9,1820.8,5.04256326]
[1746366438509,1.09834,1820.9,1820.8,41.89836]
[1746366438715,3.2078,1821.2,1820.9,1.09827]
[1746366438916,1.09818,1821.1,1821.0,6.66326326]
[1746366439216,2.69148,1821.1,1821.0,6.66326326]
[1746366440712,2.69148,1821.1,1821.0,5.04256326]
[1746366441112,0.8474,1821.3,1821.0,5.04256326]
[1746366441313,2.69138,1821.3,1821.2,5.04256326]
[1746366441814,2.69138,1821.3,1821.2,6.76336326]
[1746366442720,2.69138,1821.3,1821.2,5.04256326]
[1746366443719,1.09809,1821.3,1821.2,5.04256326]
[1746366443905,1.09809,1821.3,1821.2,6.76336326]
[1746366444112,2.82029,1821.3,1821.2,6.76336326]
[1746366445016,2.82029,1821.3,1821.2,5.04256326]
[1746366445612,1.09818,1821.1,1821.0,2.4769]
[1746366445812,1.7222,1821.3,1820.8,3.971]
[1746366445813,1.09835,1820.9,1820.8,3.971]
[1746366446214,1.09835,1820.9,1820.8,45.84256326]
[1746366446416,2.812,1820.9,1820.8,51.49926326]
[1746366446707,1.0983,1820.9,1820.8,9.93606326]
[1746366446911,2.812,1820.9,1820.8,10.69926326]
[1746366447106,1.09813,1821.2,1821.0,1.0982]
[1746366447319,1.09813,1821.2,1821.1,10.69926326]
[1746366447818,1.09824,1821.0,1820.9,7.9766]
[1746366448013,1.09819,1821.1,1821.0,1.09824]
[1746366448222,1.09816,1821.2,1821.1,5.04256326]
[1746366448416,1.09816,1821.2,1821.1,6.77766326]
[1746366448617,1.09824,1821.0,1820.9,48.7766]
[1746366448915,1.09824,1821.0,1820.9,49.8749]
[1746366449116,1.09824,1821.0,1820.9,53.81916326]
[1746366449521,1.09824,1821.0,1820.9,54.91746326]
[1746366449918,1.6851,1821.2,1820.9,54.91746326]
[1746366450120,4.30598,1821.1,1821.0,10.74866326]
[1746366450309,4.30598,1821.1,1821.0,9.01356326]
[1746366450512,4.30598,1821.1,1821.0,5.04256326]
[1746366450712,5.12048,1821.1,1821.0,5.04256326]
[1746366451214,1.09824,1821.0,1820.9,4.7688]
[1746366451515,2.67664,1821.0,1820.9,0.7978]
[1746366451718,1.09842,1820.7,1820.6,4.0436]
[1746366452019,1.0984,1820.8,1820.6,10.18460326]
[1746366452218,1.0984,1820.8,1820.7,43.54482]
[1746366452415,1.0984,1820.8,1820.7,48.58738326]
[1746366452817,1.0984,1820.8,1820.7,47.48896326]
[1746366453014,2.67674,1820.9,1820.7,52.55838326]
[1746366453215,1.09834,1820.9,1820.8,6.68896326]
[1746366453413,1.09834,1820.9,1820.8,10.65996326]
[1746366453920,1.09834,1820.9,1820.8,11.75832326]
[1746366455321,1.09834,1820.9,1820.8,7.78732326]
[1746366455624,1.09826,1821.0,1820.9,1.0983]
[1746366455921,3.2078,1821.1,1820.9,8.66186326]
[1746366456119,3.2078,1821.1,1821.0,6.14080326]
[1746366456318,3.2078,1821.1,1821.0,7.85970326]
[1746366456822,3.6198,1821.3,1821.1,1.09813]
[1746366457121,3.6198,1821.3,1821.2,9.01456326]
[1746366457517,3.6198,1821.3,1821.2,5.6936]
[1746366458322,3.6198,1821.3,1821.2,10.73616326]
[1746366458618,3.2078,1821.4,1821.3,1.09806]
[1746366458815,4.3058,1821.4,1821.3,7.56836326]
[1746366459018,5.9427,1821.4,1821.3,7.56836326]
[1746366460220,2.7349,1821.4,1821.3,8.66642326]
[1746366460721,2.7349,1821.4,1821.3,7.56836326]
[1746366461619,1.0982,1821.1,1820.9,3.2078]
[1746366461823,1.0982,1821.1,1821.0,1.6516]
[1746366462013,1.0982,1821.1,1821.0,5.04256326]
[1746366462215,1.0982,1821.1,1821.0,8.95656326]
[1746366462416,2.8262,1821.1,1821.0,8.95656326]
[1746366463623,2.8262,1821.1,1821.0,5.04256326]
[1746366464024,2.8262,1821.1,1821.0,3.914]
[1746366464422,1.09824,1821.0,1820.8,1.92044]
[1746366464624,1.0983,1820.9,1820.8,0.8221]
[1746366464818,1.0983,1820.9,1820.8,4.7361]
[1746366465125,1.0983,1820.9,1820.8,9.77866326]
[1746366465621,1.0983,1820.9,1820.8,5.04256326]
[1746366465825,1.0983,1820.9,1820.8,8.95656326]
[1746366466227,1.0983,1820.9,1820.8,10.54396326]
[1746366466921,1.0983,1820.9,1820.8,6.62996326]
[1746366467318,1.0983,1820.9,1820.8,10.54396326]
[1746366467827,1.0983,1820.9,1820.8,11.64232326]
[1746366468023,1.0983,1820.9,1820.8,6.62996326]
[1746366468230,1.0983,1820.9,1820.8,11.64232326]
[1746366468428,2.83837,1821.0,1820.8,11.64227326]
[1746366468624,2.83837,1821.0,1820.9,6.62996326]
[1746366468828,2.83837,1821.0,1820.9,5.04256326]
[1746366469123,1.0983,1820.9,1820.8,4.7537]
[1746366469323,2.8408,1820.9,1820.8,6.4837]
[1746366469524,2.8408,1820.9,1820.8,11.52626326]
[1746366469725,2.8408,1820.9,1820.8,12.62462326]
[1746366469934,1.7425,1820.9,1820.8,12.62462326]
[1746366471423,1.09829,1821.0,1820.9,1.09828]
[1746366471424,1.09826,1821.0,1820.9,1.09828]
[1746366471621,1.7425,1821.1,1820.9,6.77256326]
[1746366471826,4.0215,1821.2,1820.8,4.7537]
[1746366471827,3.2078,1821.2,1821.1,6.14074326]
[1746366472030,3.2078,1821.2,1821.1,10.05574326]
[1746366472230,4.30589,1821.3,1821.2,1.09812]
[1746366472432,1.09806,1821.4,1821.3,1.09806]
[1746366472626,1.09806,1821.4,1821.3,2.75396]
[1746366472825,1.7425,1821.5,1821.3,7.79652326]
[1746366473026,2.84044,1821.5,1821.4,8.95756326]
[1746366473325,1.09806,1821.3,1821.2,0.8097]
[1746366473527,4.30586,1821.3,1821.2,9.76726326]
[1746366473831,2.5511,1821.4,1821.2,10.86538326]
[1746366474134,3.6491,1821.4,1821.3,5.04256326]
[1746366474526,3.6491,1821.4,1821.3,6.69846326]
[1746366474726,4.30578,1821.5,1821.3,7.79652326]
[1746366474922,4.30578,1821.5,1821.4,6.69846326]
[1746366475329,6.03468,1821.5,1821.4,6.69846326]
[1746366475835,6.03468,1821.5,1821.4,7.79646326]
[1746366476130,5.986,1821.6,1821.5,1.09794]
[1746366476335,3.67274,1821.7,1821.5,11.77420326]
[1746366476540,3.67274,1821.7,1821.6,5.04256326]
[1746366477340,1.0978,1821.8,1821.6,6.14044326]
[1746366477635,1.0978,1821.8,1821.7,5.04256326]
[1746366477831,1.7289,1821.9,1821.4,4.30577]
[1746366478029,1.09788,1821.6,1821.5,5.04256326]
[1746366478432,2.69778,1821.6,1821.5,5.04256326]
[1746366479238,1.5999,1821.6,1821.5,6.14050326]
[1746366479537,2.69778,1821.6,1821.5,6.75176326]
[1746366479735,2.69778,1821.6,1821.5,7.84970326]
[1746366480639,1.5999,1821.6,1821.5,7.84970326]
[1746366480837,2.69778,1821.6,1821.5,6.75176326]
[1746366481338,2.69778,1821.6,1821.5,8.95656326]
[1746366481534,2.4482,1821.6,1821.3,2.5733]
[1746366481737,1.09818,1821.1,1821.0,1.7371]
[1746366482031,1.09818,1821.1,1821.0,5.6511]
[1746366482239,1.09816,1821.2,1821.0,7.87790326]
[1746366482427,1.7029,1821.1,1821.0,2.83534]
[1746366482737,1.7029,1821.1,1821.0,6.74934]
[1746366482938,1.7029,1821.1,1821.0,11.79190326]
[1746366483441,2.80108,1821.1,1821.0,11.79190326]
[1746366484335,1.7029,1821.1,1821.0,11.79190326]
[1746366484537,1.0981,1821.3,1821.1,1.09816]
[1746366484737,2.7533,1821.3,1821.2,5.04256326]
[1746366484931,3.2078,1821.4,1821.2,5.04256326]
[1746366485137,3.2078,1821.4,1821.3,11.76422326]
[1746366485437,4.3058,1821.4,1821.3,11.76422326]
[1746366485841,5.7272,1821.5,1821.3,11.76422326]
[1746366486138,6.82514,1821.5,1821.4,5.04256326]
[1746366486339,5.96094,1821.5,1821.4,6.14056326]
[1746366486539,5.96094,1821.5,1821.4,6.75216326]
[1746366486941,1.09806,1821.3,1821.2,1.6684]
[1746366487135,1.09806,1821.3,1821.2,6.68052]
[1746366487336,1.09806,1821.3,1821.2,11.72308326]
[1746366487642,1.09806,1821.3,1821.2,8.95656326]
[1746366487840,1.6552,1821.4,1821.2,3.914]
[1746366488041,1.6552,1821.4,1821.1,3.914]
[1746366488240,1.09812,1821.2,1821.1,8.95656326]
[1746366488839,1.09812,1821.2,1821.1,10.05474326]
[1746366489034,1.09812,1821.2,1821.1,11.65754326]
[1746366489438,1.0981,1821.3,1821.2,1.09812]
[1746366489634,1.6552,1821.4,1821.3,6.14062326]
[1746366490442,1.6552,1821.4,1821.3,7.74342326]
[1746366490745,3.2078,1821.5,1821.4,1.098]
[1746366490941,3.2078,1821.5,1821.4,12.39636326]
[1746366491340,2.68871,1821.6,1821.4,12.39636326]
[1746366491540,2.68871,1821.6,1821.5,5.04256326]
[1746366492348,1.5908,1821.6,1821.5,6.14050326]
[1746366492647,2.68868,1821.6,1821.5,6.61436326]
[1746366493040,2.68868,1821.6,1821.5,5.04256326]
[1746366493643,1.09794,1821.5,1821.4,5.78198]
[1746366493844,1.5693,1821.5,1821.4,5.78198]
[1746366494045,1.5693,1821.5,1821.4,10.82454326]
[1746366494647,1.09785,1821.7,1821.4,9.72656326]
[1746366494846,2.66715,1821.7,1821.6,5.04256326]
[1746366495641,2.66715,1821.7,1821.6,6.14044326]
[1746366495946,3.2078,1821.8,1821.7,1.09779]
[1746366496143,3.2078,1821.8,1821.7,7.71415326]
[1746366496345,4.30557,1821.8,1821.7,10.49636326]
[1746366496642,5.93177,1821.8,1821.7,10.49636326]
[1746366497146,5.93177,1821.8,1821.7,8.92256326]
[1746366497844,5.93177,1821.8,1821.7,10.02038326]
[1746366498249,4.834,1821.8,1821.7,10.02038326]
[1746366499044,4.834,1821.8,1821.7,11.66778326]
[1746366499445,3.2078,1821.8,1821.7,11.66778326]
[1746366499847,3.66311,1822.1,1822.0,1.09763]